fUSD/lending_fUSD_20240823
["ID","MTS","AMOUNT","RATE_DAILY","PERIOD"]
[335689699,1724433034914,-500.0,0.00010999,2]
[335689700,1724433034925,-500.0,0.00010999,2]
[335689701,1724433034934,-500.0,0.00010999,2]
[335689702,1724433034943,-169.8,0.00010999,2]
[335689703,1724433034954,-500.0,0.00010999,2]
[335689704,1724433034965,-500.0,0.00010999,2]
[335689705,1724433034976,-500.0,0.00010999,2]
[335689706,1724433034985,-500.0,0.00010999,2]
[335689707,1724433034995,-500.0,0.00010999,2]
[335689708,1724433035005,-500.0,0.00010999,2]
[335689709,1724433035014,-500.0,0.00010999,2]
[335689710,1724433035024,-500.0,0.00010999,2]
[335689711,1724433035034,-500.0,0.00010999,2]
[335689712,1724433035044,-500.0,0.00010999,2]
[335689713,1724433035053,-500.0,0.00010999,2]
[335689714,1724433035063,-500.0,0.00010999,2]
[335689715,1724433035073,-500.0,0.00010999,2]
[335689716,1724433035082,-632.02,0.00010999,2]
[335689717,1724433035092,-500.0,0.00010999,2]
[335689718,1724433035101,-500.0,0.00010999,2]
[335689719,1724433035111,-500.0,0.00010999,2]
[335689720,1724433035120,-500.0,0.00010999,2]
[335689721,1724433035130,-500.0,0.00010999,2]
[335689722,1724433035140,-500.0,0.00010999,2]
[335689723,1724433035150,-500.0,0.00010999,2]
[335689724,1724433035159,-500.0,0.00010999,2]
[335689725,1724433035170,-500.0,0.00010999,2]
[335689726,1724433035180,-500.0,0.00010999,2]
[335689727,1724433035189,-500.0,0.00010999,2]
[335689728,1724433035200,-500.0,0.00010999,2]
[335689729,1724433035209,-500.0,0.00010999,2]
[335689730,1724433035219,-500.0,0.00010999,2]
[335689731,1724433035228,-500.0,0.00010999,2]
[335689732,1724433035238,-500.0,0.00010999,2]
[335689733,1724433035247,-500.0,0.00010999,2]
[335689734,1724433035257,-500.0,0.00010999,2]
[335689735,1724433035266,-500.0,0.00010999,2]
[335689736,1724433035276,-500.0,0.00010999,2]
[335689737,1724433035285,-500.0,0.00010999,2]
[335689738,1724433035295,-500.0,0.00010999,2]
[335689739,1724433035305,-500.0,0.00010999,2]
[335689740,1724433035315,-500.0,0.00010999,2]
[335689741,1724433035325,-500.0,0.00010999,2]
[335689742,1724433035334,-500.0,0.00010999,2]
[335689743,1724433035344,-500.0,0.00010999,2]
[335689744,1724433035354,-500.0,0.00010999,2]
[335689745,1724433035365,-500.0,0.00010999,2]
[335689746,1724433035374,-500.0,0.00010999,2]
[335689747,1724433035384,-500.0,0.00010999,2]
[335689748,1724433035393,-500.0,0.00010999,2]
[335689749,1724433035403,-208.63,0.00010999,2]
[335689750,1724433035413,-500.0,0.00010999,2]
[335689751,1724433035423,-500.0,0.00010999,2]
[335689752,1724433035433,-500.0,0.00010999,2]
[335689753,1724433035443,-500.0,0.00010999,2]
[335689754,1724433035458,-500.0,0.00010999,2]
[335689755,1724433035467,-500.0,0.00010999,2]
[335689756,1724433035476,-500.0,0.00010999,2]
[335689757,1724433035486,-500.0,0.00010999,2]
[335689758,1724433035495,-500.0,0.00010999,2]
[335689759,1724433035504,-500.0,0.00010999,2]
[335689760,1724433035513,-500.0,0.00010999,2]
[335689761,1724433035523,-275.32,0.00010999,2]
[335689762,1724433035533,-500.0,0.00010999,2]
[335689763,1724433035543,-1000.0,0.00010999,2]
[335689764,1724433035552,-500.0,0.00010999,2]
[335689765,1724433035561,-500.0,0.00010999,2]
[335689766,1724433035571,-500.0,0.00010999,2]
[335689767,1724433035581,-500.0,0.00010999,2]
[335689768,1724433035590,-500.0,0.00010999,2]
[335689769,1724433035599,-500.0,0.00010999,2]
[335689770,1724433035609,-315.2,0.00010999,2]
[335689771,1724433035619,-554.06,0.00010999,2]
[335689772,1724433035629,-500.0,0.00010999,2]
[335689773,1724433035638,-554.06,0.00010999,2]
[335689774,1724433035647,-481.63078476,0.00010999,2]
[335689775,1724433035656,-554.06,0.00010999,2]
[335689776,1724433035666,-554.06,0.00010999,2]
[335689777,1724433035676,-554.06,0.00010999,2]
[335689778,1724433035686,-554.06,0.00010999,2]
[335689779,1724433035695,-554.06,0.00010999,2]
[335689780,1724433035705,-554.06,0.00010999,2]
[335689781,1724433035714,-554.06,0.00010999,2]
[335689782,1724433035723,-554.06,0.00010999,2]
[335689783,1724433035733,-554.06,0.00010999,2]
[335689784,1724433035743,-554.06,0.00010999,2]
[335689785,1724433035752,-554.06,0.00010999,2]
[335689786,1724433035762,-554.06,0.00010999,2]
[335689787,1724433035771,-554.06,0.00010999,2]
[335689788,1724433035780,-618.88,0.00010999,2]
[335689789,1724433035790,-618.88,0.00010999,2]
[335689790,1724433035799,-618.88,0.00010999,2]
[335689791,1724433035809,-618.88,0.00010999,2]
[335689792,1724433035818,-618.88,0.00010999,2]
[335689793,1724433035828,-618.88,0.00010999,2]
[335689794,1724433035837,-618.88,0.00010999,2]
[335689795,1724433035847,-618.88,0.00010999,2]
[335689796,1724433035856,-618.88,0.00010999,2]
[335689797,1724433035866,-618.88,0.00010999,2]
[335689798,1724433035875,-618.88,0.00010999,2]
[335689799,1724433035885,-618.88,0.00010999,2]
[335689800,1724433035895,-618.88,0.00010999,2]
[335689801,1724433035904,-618.88,0.00010999,2]
[335689802,1724433035914,-561.31,0.00010999,2]
[335689803,1724433035924,-561.31,0.00010999,2]
[335689804,1724433035934,-561.31,0.00010999,2]
[335689805,1724433035943,-561.31,0.00010999,2]
[335689806,1724433035953,-561.31,0.00010999,2]
[335689807,1724433035962,-561.31,0.00010999,2]
[335689808,1724433035972,-561.31,0.00010999,2]
[335689809,1724433035982,-561.31,0.00010999,2]
[335689810,1724433035991,-561.31,0.00010999,2]
[335689811,1724433036001,-561.31,0.00010999,2]
[335689812,1724433036010,-561.31,0.00010999,2]
[335689813,1724433036019,-561.31,0.00010999,2]
[335689814,1724433036029,-561.31,0.00010999,2]
[335689815,1724433036038,-561.31,0.00010999,2]
[335689816,1724433036048,-561.31,0.00010999,2]
[335689817,1724433036058,-1500.0,0.00010999,2]
[335689818,1724433036067,-644.37762194,0.00010999,2]
[335689819,1724433036077,-500.0,0.00010999,2]
[335689820,1724433036087,-500.0,0.00010999,2]
[335689821,1724433036096,-500.0,0.00010999,2]
[335689822,1724433036106,-500.0,0.00010999,2]
[335689823,1724433036115,-500.0,0.00010999,2]
[335689824,1724433036126,-500.0,0.00010999,2]
[335689825,1724433036135,-1038.62,0.00010999,2]
[335689826,1724433036144,-1038.62,0.00010999,2]
[335689827,1724433036153,-314.15734685,0.00010999,2]
[335689828,1724433036163,-1038.62,0.00010999,2]
[335689829,1724433036175,-1038.62,0.00010999,2]
[335689830,1724433036185,-1038.62,0.00010999,2]
[335689831,1724433036194,-1038.62,0.00010999,2]
[335689832,1724433036203,-1038.62,0.00010999,2]
[335689833,1724433036213,-1038.62,0.00010999,2]
[335689834,1724433036222,-1038.62,0.00010999,2]
[335689835,1724433036232,-1038.62,0.00010999,2]
[335689836,1724433036242,-1038.62,0.00010999,2]
[335689837,1724433036252,-1038.62,0.00010999,2]
[335689838,1724433036261,-1038.62,0.00010999,2]
[335689839,1724433036270,-1038.62,0.00010999,2]
[335689840,1724433036280,-1038.62,0.00010999,2]
[335689841,1724433036290,-1810.27765918,0.00010999,2]
[335689842,1724433036299,-500.0,0.00010999,2]
[335689843,1724433036309,-500.0,0.00010999,2]
[335689844,1724433036319,-500.0,0.00010999,2]
[335689845,1724433036328,-500.0,0.00010999,2]
[335689846,1724433036338,-534.85073716,0.00010999,2]
[335689847,1724433036348,-500.0,0.00010999,2]
[335689848,1724433036357,-500.0,0.00010999,2]
[335689849,1724433036367,-500.0,0.00010999,2]
[335689850,1724433036376,-494.01800828,0.00010999,2]
[335689851,1724433036386,-500.0,0.00010999,2]
[335689852,1724433036396,-96860.98815614,0.00011,2]
[335689853,1724433036405,-182043.48254841,0.00011,2]
[335689854,1724433036424,-839.21568449,0.00011,2]
[335689855,1724433036435,-399.20391486,0.00011,2]
[335689856,1724433036459,-159407.1240147,0.00011,2]
[335689857,1724433036470,-300.0,0.00011,2]
[335689858,1724433036482,-484.32,0.00011,2]
[335689859,1724433036494,-503.022718,0.00011,2]
[335689860,1724433036505,-1096.62478645,0.00011,2]
[335689861,1724433036516,-588.01158738,0.00011,2]
[335689871,1724433038362,-307.84803713,0.000109,2]
[335689873,1724433038372,-16.657271,0.00010999,2]
[335689877,1724433038419,-483.342729,0.00010999,2]
[335689878,1724433038430,-500.0,0.00010999,2]
[335689879,1724433038439,-275.40727101,0.00010999,2]
[335689880,1724433038491,-224.59272899,0.00010999,2]
[335689881,1724433038501,-500.0,0.00010999,2]
[335689882,1724433038510,-500.0,0.00010999,2]
[335689883,1724433038520,-500.0,0.00010999,2]
[335689884,1724433038530,-500.0,0.00010999,2]
[335689885,1724433038539,-613.28,0.00010999,2]
[335689886,1724433038548,-7582.92949587,0.00011,2]
[335689887,1724433038560,-7768.1384,0.00011,2]
[335689888,1724433038571,-7146.2938,0.00011,2]
[335689889,1724433038583,-17006.65070178,0.00011,2]
[335689890,1724433038657,-348.49476253,0.00011,2]
[335689891,1724433038669,-678.64593533,0.00011,2]
[335689892,1724433038685,-3056.43087501,0.00011,2]
[335689893,1724433038714,-2855.0,0.00011,2]
[335689894,1724433038725,-358.48667185,0.00011,2]
[335689895,1724433038736,-526.25030405,0.00011,2]
[335689896,1724433038772,-556.4527113,0.00011,2]
[335689903,1724433039409,1050.0,0.0001,2]
[335689914,1724433040381,-500.0,0.00010999,2]
[335689916,1724433040393,-500.0,0.00010999,2]
[335689918,1724433040403,-500.0,0.00010999,2]
[335689920,1724433040412,-500.0,0.00010999,2]
[335689922,1724433040429,-90339.98351137,0.00011,2]
[335689931,1724433040594,-484.51263986,0.00011,2]
[335690003,1724433042357,-2988.1528593,0.00011,2]
[335690004,1724433042368,-530.37784572,0.00011,2]
[335690005,1724433042378,-2347.58158213,0.00011,2]
[335690006,1724433042389,-4432.26839026,0.00011,2]
[335690007,1724433042400,-3024.61252761,0.00011,2]
[335690008,1724433042411,-300.59930483,0.00011,2]
[335690009,1724433042422,-11953.20000001,0.00011,2]
[335690010,1724433042432,-7827.40409999,0.00011,2]
[335690011,1724433042443,-268.465,0.00011,2]
[335690012,1724433042458,-286.4,0.00011,2]
[335690014,1724433043920,-827.19049739,0.00011,2]
[335690015,1724433043978,-1072.96702492,0.00011,2]
[335690016,1724433044040,-1700.6,0.00011,2]
[335690017,1724433044052,-6204.60000004,0.00011,2]
[335690018,1724433044104,-6571.75508606,0.00011,2]
[335690019,1724433044116,-760.21,0.00011,2]
[335690020,1724433044127,-406.36810276,0.00011,2]
[335690021,1724433044138,-623.25,0.00011,2]
[335690022,1724433044164,-483.05124613,0.00011,2]
[335690023,1724433044176,-1451.5791609,0.00011,2]
[335690024,1724433044223,-4330.59626476,0.00011,2]
[335690025,1724433044235,-445.19999997,0.00011,2]
[335690026,1724433044246,-715.43335499,0.00011,2]
[335690027,1724433044289,-547.46957672,0.00011,2]
[335690028,1724433044300,-427.149998,0.00011,2]
[335690029,1724433044312,-5418.49124456,0.00011,2]
[335690187,1724433046315,-1000.0,0.00011,2]
[335690189,1724433046327,-1027.23231092,0.00011,2]
[335690191,1724433046339,-301.4499998,0.00011,2]
[335690197,1724433046389,-349.99877428,0.00011,2]
[335690202,1724433046447,-1235.87774031,0.00011,2]
[335690209,1724433046497,-7359.193961,0.00011,2]
[335690259,1724433346528,1391.23,0.00010008,2]
[335690260,1724433378652,170.36289186,0.00010008,2]
[335690261,1724433379469,22560.2,0.00010007,2]
[335690262,1724433385136,500.0,0.00010008,2]
[335690263,1724433442158,1000.0,0.00025,60]
[335690264,1724433496639,500.0,0.00010008,2]
[335690265,1724433520729,406.32,8.219e-05,2]
[335690266,1724433529013,200.0,0.00025,60]
[335690267,1724433556299,1000.0,0.00025,60]
[335690268,1724433576055,1000.0,0.00025,60]
[335690269,1724433588548,1000.0,0.00025,60]
[335690270,1724433639922,250.0,9.968e-05,2]
[335690271,1724433652953,588.01,9.982e-05,2]
[335690272,1724433686949,-1000.0,0.00027,120]
[335690273,1724433686972,-1000.0,0.00027,120]
[335690274,1724433686995,-500.0,0.00027,120]
[335690275,1724433687021,-200.0,0.00027,120]
[335690276,1724433745134,200.0,9.948e-05,2]
[335690279,1724433777218,3250.0,0.00027,120]
[335690303,1724433795624,331.46544404,0.00027,120]
[335690312,1724433803507,1000.0,0.00026849,120]
[335690313,1724433803971,1000.0,0.00026849,120]
[335690316,1724433840368,288.919517,0.00025393,120]
[335690317,1724433843739,500.0,0.00024932,120]
[335690322,1724433877307,35741.98754431,0.00010009,2]
[335690327,1724433912829,160.16,9.939e-05,2]
[335690332,1724433914232,250.05,0.000178,120]
[335690349,1724433919927,7590.54665462,9e-05,2]
[335690351,1724433925229,645.86,0.00027,120]
[335690352,1724433926044,1005.32725754,0.00025,60]
[335690353,1724433931544,331.46544404,0.00027,120]
[335690358,1724433951886,2887.0,0.00027,120]
[335690360,1724433954146,5883.94454761,6.94e-05,2]
[335690361,1724433958563,1000.0,0.00025,60]
[335690366,1724434004896,2000.0,0.00027,120]
[335690369,1724434005415,2951.0,0.00027,120]
[335690370,1724434006085,3000.0,0.00027,120]
[335690373,1724434021159,349.55969376,0.00010009,2]
[335690375,1724434032118,1699.2713723,0.000163,120]
[335690384,1724434047102,157.47821441,0.00025,60]
[335690385,1724434054431,404.81,8.219e-05,2]
[335690387,1724434066931,-409.92,0.00010021,2]
[335690388,1724434066954,-155.43928951,0.00010097,2]
[335690389,1724434066977,-338.09,0.00010101,2]
[335690390,1724434066999,-9279.7073461,0.00010471,2]
[335690391,1724434067022,-404.81,0.00010472,2]
[335690392,1724434067043,-178.79,0.00010494,2]
[335690393,1724434067065,-300.0,0.00010504,2]
[335690394,1724434067086,-300.0,0.00010504,2]
[335690395,1724434067107,-300.0,0.00010504,2]
[335690396,1724434067128,-3941.13698771,0.00010566,2]
[335690397,1724434067151,-5408.2252756,0.00010566,2]
[335690398,1724434067172,-1298.34223089,0.00010713,2]
[335690399,1724434067192,-760.53887019,0.00010713,2]
[335690401,1724434078146,500.0,0.00010009,2]
[335690404,1724434079803,164.37647516,0.0001,2]
[335690407,1724434096412,-180.528769,0.00010655,2]
[335690408,1724434096438,-2505.08172549,0.00010699,2]
[335690409,1724434096464,-300.0,0.00010712,2]
[335690410,1724434096491,-300.0,0.00010712,2]
[335690411,1724434096517,-200.74477424,0.00010713,2]
[335690412,1724434096542,-4772.7127,0.00010713,2]
[335690413,1724434096566,-1500.0,0.00010713,2]
[335690414,1724434096591,-156.39812584,0.00010713,2]
[335690415,1724434096615,-155.0,0.00010713,2]
[335690416,1724434096639,-150.0,0.00010798,2]
[335690417,1724434096665,-2343.73872137,0.00010799,2]
[335690418,1724434096689,-969.59769314,0.000108,2]
[335690419,1724434096715,-440.25519205,0.00010852,2]
[335690420,1724434096739,-499.99,0.0001086,2]
[335690424,1724434103791,255.03150906,0.00010852,2]
[335690439,1724434122362,330.97539939,0.00010852,2]
[335690447,1724434131674,250.0,0.00010023,2]
[335690450,1724434148453,1000.0,0.00010015,2]
[335690451,1724434149906,214.82853554,0.00010852,2]
[335690452,1724434150153,206.04295958,0.00010852,2]
[335690482,1724434152769,294.0,0.00010015,2]
[335690547,1724434157142,261.29425219,0.00010852,2]
[335690553,1724434164149,500.0,0.0001,2]
[335690556,1724434174958,249.47055089,0.00010852,2]
[335690564,1724434176554,442.73116855,0.00027,120]
[335690565,1724434187890,649.92257342,0.00010852,2]
[335690568,1724434191477,419.50258882,0.00010852,2]
[335690570,1724434201200,402.6611149,0.00010852,2]
[335690590,1724434222991,2887.0,0.00027,120]
[335690610,1724434231563,-155.0,0.00010861,2]
[335690611,1724434231572,-653.41148984,0.00010861,2]
[335690612,1724434231582,-365.68547453,0.00010861,2]
[335690613,1724434231591,-155.0,0.00010862,2]
[335690614,1724434231601,-165.02678942,0.00010862,2]
[335690615,1724434231610,-357.45302385,0.00010862,2]
[335690616,1724434231619,-548.77669796,0.00010862,2]
[335690617,1724434231629,-203.67723647,0.00010862,2]
[335690618,1724434231638,-300.0,0.00010879,2]
[335690619,1724434231647,-7588.82789018,0.0001088,2]
[335690620,1724434231658,-613.2835129,0.0001088,2]
[335690621,1724434231677,-3409.87855358,0.0001088,2]
[335690622,1724434231687,-150.99,0.00010888,2]
[335690623,1724434231696,-1211.51275258,0.00010888,2]
[335690624,1724434231705,-155.09832397,0.00010888,2]
[335690625,1724434231714,-155.0,0.00010888,2]
[335690626,1724434231724,-8.11060936,0.00010888,2]
[335690627,1724434231735,-147.46830317,0.00010888,2]
[335690628,1724434231744,-309.58879588,0.00010888,2]
[335690630,1724434231753,-348.31851385,0.00010888,2]
[335690631,1724434231762,-155.04566194,0.00010888,2]
[335690632,1724434231771,-607.75596666,0.00010888,2]
[335690633,1724434231782,-156.98533679,0.0001089,2]
[335690634,1724434231792,-155.05987638,0.0001089,2]
[335690635,1724434231801,-150.0,0.00010898,2]
[335690636,1724434231815,-1659.02099279,0.00010899,2]
[335690637,1724434231826,-18390.25693304,0.00010899,2]
[335690638,1724434231838,-690.34579489,0.00010899,2]
[335690644,1724434237422,-914.0500234,0.00010899,2]
[335690646,1724434237434,-2166.78342138,0.00010899,2]
[335690648,1724434237593,-4251.07135062,0.00010899,2]
[335690649,1724434237604,-384.55008388,0.00010899,2]
[335690650,1724434237614,-5963.031,0.00010899,2]
[335690651,1724434237623,-1239.09722912,0.00010899,2]
[335690652,1724434237635,-7739.31757088,0.00010899,2]
[335690653,1724434237645,-999.99,0.00010899,2]
[335690654,1724434237654,-301.45211106,0.00010899,2]
[335690655,1724434237663,-10988.72121018,0.00010899,2]
[335690656,1724434237674,-358.33485164,0.00010899,2]
[335690657,1724434237685,-1019.93334767,0.00010899,2]
[335690658,1724434237704,-702.44724291,0.00010899,2]
[335690659,1724434237716,-5822.32424264,0.00010899,2]
[335690660,1724434237728,-34.93034086,0.00010899,2]
[335690661,1724434237737,-270.01371508,0.000109,2]
[335690663,1724434237750,-15.19101706,0.000109,2]
[335690664,1724434237761,-421.43,0.000109,2]
[335690665,1724434237771,-289.36683459,0.000109,2]
[335690666,1724434237792,-501.32316541,0.000109,2]
[335690668,1724434237801,-158.6483152,0.000109,2]
[335690670,1724434237810,-595.02851939,0.000109,2]
[335690789,1724434239654,-840.16339499,0.000109,2]
[335690790,1724434239664,-3176.09557532,0.000109,2]
[335690791,1724434239675,-354.6886366,0.000109,2]
[335690792,1724434239684,-500.0,0.00010912,2]
[335690793,1724434239694,-179.99,0.00010912,2]
[335690794,1724434239705,-241.54230122,0.00010949,2]
[335690795,1724434239715,-150.0,0.00010953,2]
[335690796,1724434239725,-315.19993887,0.00010959,2]
[335690797,1724434239737,-184.80006113,0.00010959,2]
[335690798,1724434239746,-200.0,0.00010959,2]
[335690799,1724434239758,-158.02,0.00010959,2]
[335690800,1724434239768,-157.55,0.00010959,2]
[335690801,1724434239777,-250.0,0.00010959,2]
[335690802,1724434239786,-1500.0,0.00010959,2]
[335690803,1724434239796,-151.33,0.00010959,2]
[335690804,1724434239806,-469.33497757,0.00010963,2]
[335690805,1724434239820,-150.0,0.00010972,2]
[335690806,1724434239831,-28.91836832,0.00010973,2]
[335690807,1724434239853,-131.74236093,0.00010973,2]
[335690808,1724434239863,-428.57931956,0.00010973,2]
[335690809,1724434239873,-200.0,0.00010973,2]
[335690810,1724434239882,-200.0,0.00010973,2]
[335690811,1724434239895,-155.0,0.00010979,2]
[335690812,1724434239905,-155.0,0.00010979,2]
[335690813,1724434239914,-2242.35735466,0.00010987,3]
[335690814,1724434239925,-757.64264534,0.00010987,3]
[335690815,1724434239935,-150.82,0.0001099,2]
[335690816,1724434239944,-150.82,0.0001099,2]
[335690817,1724434239954,-150.82,0.0001099,2]
[335690818,1724434239965,-183.746608,0.00010996,2]
[335690819,1724434239976,-1000.0,0.00010998,2]
[335690820,1724434240165,-120.32102849,0.00010998,2]
[335690821,1724434240176,-426.09897151,0.00010998,2]
[335690822,1724434240188,-500.0,0.00010998,2]
[335690823,1724434240197,-500.0,0.00010998,2]
[335690824,1724434240207,-500.0,0.00010998,2]
[335690825,1724434240216,-500.0,0.00010998,2]
[335690826,1724434240224,-130.48281787,0.00010998,2]
[335690908,1724434241714,-369.51718213,0.00010998,2]
[335690910,1724434241724,-500.0,0.00010998,2]
[335690912,1724434241733,-500.0,0.00010998,2]
[335690914,1724434241742,-244.69976056,0.00010998,2]
[335690916,1724434241754,-255.30023944,0.00010998,2]
[335690918,1724434241763,-500.0,0.00010998,2]
[335690920,1724434241772,-500.0,0.00010998,2]
[335690922,1724434241781,-330.48281787,0.00010998,2]
[335690924,1724434241794,-169.51718213,0.00010998,2]
[335690926,1724434241803,-500.0,0.00010998,2]
[335690928,1724434241814,-500.0,0.00010998,2]
[335690930,1724434241826,-500.0,0.00010998,2]
[335690932,1724434241835,-500.0,0.00010998,2]
[335690934,1724434241844,-500.0,0.00010998,2]
[335690936,1724434241853,-500.0,0.00010998,2]
[335690938,1724434241864,-112.38281787,0.00010998,2]
[335690940,1724434241879,-2805.1,0.00010998,2]
[335690942,1724434241891,-1058.39718213,0.00010998,2]
[335690944,1724434241902,-500.0,0.00010998,2]
[335690946,1724434241912,-500.0,0.00010998,2]
[335690948,1724434241921,-500.0,0.00010998,2]
[335690950,1724434241930,-82.62781787,0.00010998,2]
[335690952,1724434241941,-417.37218213,0.00010998,2]
[335690954,1724434241950,-997.62122173,0.00010998,2]
[335690956,1724434241961,-2905.69877827,0.00010998,2]
[335690958,1724434241970,-500.0,0.00010998,2]
[335690960,1724434241979,-500.0,0.00010998,2]
[335690962,1724434241988,-189.88079239,0.00010998,2]
[335691033,1724434242616,-476.11920761,0.00010998,2]
[335691035,1724434242625,-4329.23,0.00010998,2]
[335691037,1724434242635,-500.0,0.00010998,2]
[335691039,1724434242644,-500.0,0.00010998,2]
[335691041,1724434242653,-500.0,0.00010998,2]
[335691043,1724434242662,-3415.7,0.00010998,2]
[335691045,1724434242671,-500.0,0.00010998,2]
[335691047,1724434242681,-500.0,0.00010998,2]
[335691049,1724434242690,-1000.0,0.00010999,2]
[335691051,1724434242701,-1000.0,0.00010999,2]
[335691053,1724434242710,-1000.0,0.00010999,2]
[335691055,1724434242719,-1000.0,0.00010999,2]
[335691057,1724434242729,-1000.0,0.00010999,2]
[335691059,1724434242738,-546.42,0.00010999,2]
[335691061,1724434242746,-546.42,0.00010999,2]
[335691063,1724434242756,-546.42,0.00010999,2]
[335691065,1724434242764,-546.42,0.00010999,2]
[335691067,1724434242774,-546.42,0.00010999,2]
[335691068,1724434242783,-546.42,0.00010999,2]
[335691070,1724434242793,-546.42,0.00010999,2]
[335691072,1724434242802,-546.42,0.00010999,2]
[335691074,1724434242811,-546.42,0.00010999,2]
[335691076,1724434242824,-546.42,0.00010999,2]
[335691078,1724434242833,-546.42,0.00010999,2]
[335691080,1724434242842,-546.42,0.00010999,2]
[335691082,1724434242852,-546.42,0.00010999,2]
[335691084,1724434242862,-546.42,0.00010999,2]
[335691086,1724434242873,-546.42,0.00010999,2]
[335691088,1724434242883,-500.0,0.00010999,2]
[335691090,1724434242893,-325.43921824,0.00010999,2]
[335691092,1724434242902,-500.0,0.00010999,2]
[335691094,1724434242911,-500.0,0.00010999,2]
[335691097,1724434242920,-500.0,0.00010999,2]
[335691100,1724434242929,-500.0,0.00010999,2]
[335691103,1724434242938,-500.0,0.00010999,2]
[335691106,1724434242947,-500.0,0.00010999,2]
[335691109,1724434242956,-500.0,0.00010999,2]
[335691112,1724434242965,-500.0,0.00010999,2]
[335691114,1724434242974,-500.0,0.00010999,2]
[335691116,1724434242984,-500.0,0.00010999,2]
[335691118,1724434242993,-500.0,0.00010999,2]
[335691120,1724434243002,-500.0,0.00010999,2]
[335691123,1724434243012,-500.0,0.00010999,2]
[335691126,1724434243021,-500.0,0.00010999,2]
[335691128,1724434243030,-500.0,0.00010999,2]
[335691130,1724434243040,-649.07,0.00010999,2]
[335691132,1724434243049,-649.07,0.00010999,2]
[335691134,1724434243058,-649.07,0.00010999,2]
[335691136,1724434243067,-649.07,0.00010999,2]
[335691138,1724434243076,-649.07,0.00010999,2]
[335691140,1724434243086,-649.07,0.00010999,2]
[335691142,1724434243095,-649.07,0.00010999,2]
[335691144,1724434243104,-649.07,0.00010999,2]
[335691146,1724434243113,-649.07,0.00010999,2]
[335691148,1724434243122,-649.07,0.00010999,2]
[335691150,1724434243131,-649.07,0.00010999,2]
[335691152,1724434243140,-649.07,0.00010999,2]
[335691154,1724434243149,-649.07,0.00010999,2]
[335691156,1724434243158,-649.07,0.00010999,2]
[335691158,1724434243167,-649.07,0.00010999,2]
[335691160,1724434243176,-500.0,0.00010999,2]
[335691161,1724434243185,-500.0,0.00010999,2]
[335691163,1724434243194,-259.6,0.00010999,2]
[335691166,1724434243205,-500.0,0.00010999,2]
[335691168,1724434243214,-500.0,0.00010999,2]
[335691170,1724434243224,-641.14,0.00010999,2]
[335691172,1724434243235,-500.0,0.00010999,2]
[335691174,1724434243246,-500.0,0.00010999,2]
[335691176,1724434243256,-500.0,0.00010999,2]
[335691178,1724434243266,-500.0,0.00010999,2]
[335691179,1724434243275,-500.0,0.00010999,2]
[335691180,1724434243285,-500.0,0.00010999,2]
[335691181,1724434243296,-399.73011747,0.00010999,2]
[335691182,1724434243305,-500.0,0.00010999,2]
[335691183,1724434243314,-500.0,0.00010999,2]